{"text_format":"1","workbook":"xlsx","n_sheets":2,"sheets":["afvalscheiding","printblad"],"not_rendered":{"charts":0,"images":26,"macros":1,"external_links":0,"defined_names":1,"comments":0,"pivot_tables":0},"unopened":[],"bounds":{"document_bytes":16777216,"sheet_cells":100000,"rows_first":2000,"rows_last":500,"rows_between":2000,"halvings":0,"cell_chars":16384,"cell_head_chars":4096},"cells_cut":0,"cells_raw":0,"read":"whole","date_system":"1900"}

{"sheet":"afvalscheiding","index":0,"n_rows":12,"n_cols":10,"rows_kept":12,"cut":false,"hidden":false,"merged":[[2,3,2,5],[3,3,3,5]]}
[]
[]
[null,null,"Kandidaatnaam:"]
[null,null,"Kandidaatnummer:"]
[]
[null,null,"afval","soort",null,"afval","soort",null,"afval","soort"]
[null,null,"stofzuigerzak",null,null,"medicijnen",null,null,"bloemen"]
[null,null,"glazenpot",null,null,"balpen",null,null,"champignonbakje"]
[null,null,"spaarlamp",null,null,"theezakje",null,null,"staafmixer"]
[null,null,"koffiepad",null,null,"luier",null,null,"cd"]
[null,null,"eierdoos",null,null,"handdoeken",null,null,"yoghurtverpakking"]
[null,null,"sinaasappelschillen",null,null,"batterijen",null,null,"papierenzak"]

{"sheet":"printblad","index":1,"n_rows":24,"n_cols":4,"rows_kept":24,"cut":false,"hidden":false,"merged":[[2,3,2,4],[3,3,3,4]]}
[]
[]
[null,null,{"$f":"afvalscheiding!C3","v":"Kandidaatnaam:"},{"$f":"afvalscheiding!D3","v":0}]
[null,null,{"$f":"afvalscheiding!C4","v":"Kandidaatnummer:"},{"$f":"afvalscheiding!D4","v":0}]
[]
[null,null,{"$f":"afvalscheiding!C6","v":"afval"},{"$f":"afvalscheiding!D6","v":"soort"}]
[null,null,{"$f":"afvalscheiding!C7","v":"stofzuigerzak"},{"$f":"IFERROR(LEFT(afvalscheiding!D7,LEN(afvalscheiding!D7)-4),\"\")","v":""}]
[null,null,{"$f":"afvalscheiding!C8","v":"glazenpot"},{"$f":"IFERROR(LEFT(afvalscheiding!D8,LEN(afvalscheiding!D8)-4),\"\")","v":""}]
[null,null,{"$f":"afvalscheiding!C9","v":"spaarlamp"},{"$f":"IFERROR(LEFT(afvalscheiding!D9,LEN(afvalscheiding!D9)-4),\"\")","v":""}]
[null,null,{"$f":"afvalscheiding!C10","v":"koffiepad"},{"$f":"IFERROR(LEFT(afvalscheiding!D10,LEN(afvalscheiding!D10)-4),\"\")","v":""}]
[null,null,{"$f":"afvalscheiding!C11","v":"eierdoos"},{"$f":"IFERROR(LEFT(afvalscheiding!D11,LEN(afvalscheiding!D11)-4),\"\")","v":""}]
[null,null,{"$f":"afvalscheiding!C12","v":"sinaasappelschillen"},{"$f":"IFERROR(LEFT(afvalscheiding!D12,LEN(afvalscheiding!D12)-4),\"\")","v":""}]
[null,null,{"$f":"afvalscheiding!F7","v":"medicijnen"},{"$f":"IFERROR(LEFT(afvalscheiding!G7,LEN(afvalscheiding!G7)-4),\"\")","v":""}]
[null,null,{"$f":"afvalscheiding!F8","v":"balpen"},{"$f":"IFERROR(LEFT(afvalscheiding!G8,LEN(afvalscheiding!G8)-4),\"\")","v":""}]
[null,null,{"$f":"afvalscheiding!F9","v":"theezakje"},{"$f":"IFERROR(LEFT(afvalscheiding!G9,LEN(afvalscheiding!G9)-4),\"\")","v":""}]
[null,null,{"$f":"afvalscheiding!F10","v":"luier"},{"$f":"IFERROR(LEFT(afvalscheiding!G10,LEN(afvalscheiding!G10)-4),\"\")","v":""}]
[null,null,{"$f":"afvalscheiding!F11","v":"handdoeken"},{"$f":"IFERROR(LEFT(afvalscheiding!G11,LEN(afvalscheiding!G11)-4),\"\")","v":""}]
[null,null,{"$f":"afvalscheiding!F12","v":"batterijen"},{"$f":"IFERROR(LEFT(afvalscheiding!G12,LEN(afvalscheiding!G12)-4),\"\")","v":""}]
[null,null,{"$f":"afvalscheiding!I7","v":"bloemen"},{"$f":"IFERROR(LEFT(afvalscheiding!J7,LEN(afvalscheiding!J7)-4),\"\")","v":""}]
[null,null,{"$f":"afvalscheiding!I8","v":"champignonbakje"},{"$f":"IFERROR(LEFT(afvalscheiding!J8,LEN(afvalscheiding!J8)-4),\"\")","v":""}]
[null,null,{"$f":"afvalscheiding!I9","v":"staafmixer"},{"$f":"IFERROR(LEFT(afvalscheiding!J9,LEN(afvalscheiding!J9)-4),\"\")","v":""}]
[null,null,{"$f":"afvalscheiding!I10","v":"cd"},{"$f":"IFERROR(LEFT(afvalscheiding!J10,LEN(afvalscheiding!J10)-4),\"\")","v":""}]
[null,null,{"$f":"afvalscheiding!I11","v":"yoghurtverpakking"},{"$f":"IFERROR(LEFT(afvalscheiding!J11,LEN(afvalscheiding!J11)-4),\"\")","v":""}]
[null,null,{"$f":"afvalscheiding!I12","v":"papierenzak"},{"$f":"IFERROR(LEFT(afvalscheiding!J12,LEN(afvalscheiding!J12)-4),\"\")","v":""}]